bitfinex-derivatives/quotes_ETHF0:USTF0_20250804
["timestamp","ask_amount","ask_price","bid_price","bid_amount"]
[1754324224955,1.751,3672.8,3672.7,0.54451]
[1754324225357,23.6265,3673.3,3673.1,0.54444]
[1754324225556,1.751,3673.2,3673.0,1.19046]
[1754324225757,0.6603,3673.1,3673.0,0.859]
[1754324225959,1.1238,3673.1,3673.0,0.859]
[1754324226159,1.751,3673.1,3673.0,0.859]
[1754324226664,0.6603,3673.3,3673.2,1.40343]
[1754324227566,1.751,3673.1,3672.2,3.2078]
[1754324227857,0.6603,3672.8,3672.5,0.54453]
[1754324228064,0.6603,3672.8,3672.2,3.2078]
[1754324228065,0.6603,3672.6,3672.2,0.54458]
[1754324228363,1.751,3672.5,3672.1,0.54458]
[1754324228550,1.751,3672.3,3672.2,0.54457]
[1754324229359,0.6603,3672.3,3672.2,0.54457]
[1754324229661,1.0907,3672.8,3672.7,0.54451]
[1754324229854,3.2078,3672.9,3672.2,3.2078]
[1754324230059,1.00802,3672.7,3672.3,0.54455]
[1754324230259,1.6962,3672.4,3672.1,0.646]
[1754324230452,2.24068,3672.9,3672.1,3.8538]
[1754324230651,1.0678,3672.8,3672.7,1.16751]
[1754324230851,0.6144,3672.8,3672.7,1.37401]
[1754324231466,1.2428,3673.2,3673.1,1.37395]
[1754324231670,1.2428,3673.2,3673.1,0.54445]
[1754324231962,1.6962,3673.2,3673.1,0.54445]
[1754324232355,1.0678,3673.0,3672.6,0.623]
[1754324232556,1.2428,3672.5,3672.3,0.623]
[1754324232763,1.6962,3672.4,3672.3,1.16757]
[1754324232962,1.6962,3672.4,3672.3,0.54457]
[1754324233558,1.6962,3672.4,3672.1,3.2078]
[1754324233559,1.6962,3672.4,3672.1,0.54459]
[1754324233760,1.2428,3672.2,3672.1,0.54459]
[1754324233958,1.6962,3672.2,3672.1,0.54459]
[1754324235254,1.0818,3672.7,3672.6,0.54452]
[1754324235458,1.0818,3672.7,3671.9,1.36158]
[1754324235459,0.68933312,3672.9,3672.7,0.54449]
[1754324235772,1.0818,3673.1,3673.0,0.54446]
[1754324235960,1.6962,3673.1,3672.8,0.54449]
[1754324236264,0.6144,3672.7,3672.2,0.2065]
[1754324236463,3.2078,3672.9,3672.0,0.54461]
[1754324236464,0.6284,3672.1,3672.0,0.54461]
[1754324236668,0.54461,3672.1,3671.7,3.2078]
[1754324236969,0.54461,3672.1,3671.8,0.54464]
[1754324237266,1.6962,3671.9,3671.8,0.54464]
[1754324237466,0.54461,3672.1,3671.8,0.54463]
[1754324237768,0.69016648,3672.3,3671.7,3.2078]
[1754324237962,0.69016648,3672.2,3672.0,0.5446]
[1754324238164,1.6962,3672.1,3671.9,0.54462]
[1754324238364,1.6962,3672.0,3671.9,0.54462]
[1754324238562,1.0818,3672.4,3671.8,0.2065]
[1754324238862,0.6284,3672.1,3671.9,1.16762]
[1754324239057,0.54459,3672.2,3671.8,0.2065]
[1754324239058,3.2078,3672.5,3671.8,0.54464]
[1754324239262,1.0818,3672.3,3671.7,0.54465]
[1754324239461,0.69062342,3672.4,3671.7,0.54465]
[1754324239462,1.6962,3672.1,3671.7,0.54465]
[1754324239662,22.5328,3672.6,3671.7,0.54465]
[1754324239663,1.6962,3671.9,3671.7,0.54465]
[1754324239856,22.5328,3672.6,3671.4,0.01148]
[1754324239857,1.2428,3671.6,3671.4,0.01148]
[1754324240167,3.2078,3672.2,3670.5,0.54484]
[1754324240168,1.6962,3671.3,3670.5,0.54484]
[1754324240363,0.6144,3670.9,3670.4,1.36213]
[1754324240566,0.6144,3671.1,3671.0,1.38576]
[1754324240767,0.69050829,3671.6,3671.5,1.16769]
[1754324240964,1.17307,3671.6,3671.3,0.54472]
[1754324241160,0.6144,3671.2,3670.8,0.54479]
[1754324241365,3.2078,3671.2,3670.5,0.623]
[1754324241565,1.0818,3670.8,3670.7,0.54481]
[1754324241869,0.69040937,3671.1,3671.0,0.54476]
[1754324242066,1.0818,3671.1,3671.0,0.54476]
[1754324242261,1.0678,3671.1,3671.0,0.623]
[1754324242458,0.54475,3671.1,3670.7,0.5448]
[1754324242859,1.6962,3671.1,3670.3,3.2078]
[1754324243065,0.54479,3670.9,3670.4,0.54485]
[1754324243260,1.1592,3670.8,3670.4,0.54485]
[1754324243467,1.6962,3670.6,3670.4,0.54485]
[1754324243766,0.54483,3670.6,3670.3,3.2078]
[1754324243961,0.54491,3670.1,3669.9,0.98093979]
[1754324244161,4.2896,3670.0,3669.9,0.98093979]
[1754324244366,4.904,3670.0,3669.9,0.98093979]
[1754324244561,0.6284,3669.1,3669.0,0.54505]
[1754324244769,1.0818,3668.9,3668.6,0.5451]
[1754324244968,1.6962,3668.8,3668.7,0.5451]
[1754324245168,1.6962,3669.3,3669.2,0.54503]
[1754324245368,3.2078,3669.4,3668.8,1.0873]
[1754324245570,1.6962,3669.3,3669.0,0.54504]
[1754324245770,0.6144,3669.3,3668.8,1.0873]
[1754324245974,0.6144,3669.2,3669.0,1.0873]
[1754324246173,0.6284,3669.2,3669.1,0.54503]
[1754324246371,1.6962,3669.3,3668.7,4.2951]
[1754324246773,3.7528,3669.4,3669.0,0.54505]
[1754324246966,1.0818,3669.2,3668.9,0.54507]
[1754324247166,1.0818,3669.1,3668.3,1.0873]
[1754324247370,1.36288,3668.4,3667.5,0.21486253]
[1754324247573,1.6962,3667.9,3667.0,1.0873]
[1754324247777,0.6144,3667.8,3667.0,1.0873]
[1754324248080,1.6962,3667.6,3667.0,1.0873]
[1754324248267,1.0818,3667.5,3667.3,0.5453]
[1754324248474,0.6144,3667.4,3667.3,1.1683]
[1754324248679,0.6144,3667.5,3666.9,0.98174232]
[1754324248871,0.6144,3667.5,3667.2,0.54532]
[1754324249072,3.2078,3668.0,3667.2,0.54532]
[1754324249571,1.0818,3667.5,3667.1,0.54533]
[1754324249772,1.6962,3667.5,3666.9,0.98174232]
[1754324250067,0.6284,3667.4,3667.2,0.54533]
[1754324250269,1.6962,3667.3,3667.2,0.54533]
[1754324250467,0.6144,3667.6,3667.5,1.63258]
[1754324250670,0.6144,3667.6,3666.9,2.34515232]
[1754324250671,3.2078,3667.6,3666.9,0.98174232]
[1754324250867,1.6962,3667.1,3666.9,0.98174232]
[1754324251074,21.1052,3667.0,3666.9,0.98174232]
[1754324251580,21.65056,3667.0,3666.9,0.98174232]
[1754324252079,0.6144,3666.1,3665.9,0.54551]
[1754324252268,1.0818,3666.0,3665.9,1.18741]
[1754324253079,0.4534,3666.4,3666.2,0.6419]
[1754324253279,1.0818,3666.3,3666.2,0.6419]
[1754324253482,1.62726,3666.3,3666.2,0.6419]
[1754324253681,1.0818,3666.3,3666.2,0.6419]
[1754324253981,3.2078,3666.4,3666.3,1.7292]
[1754324254178,3.2078,3666.4,3666.3,0.6419]
[1754324254179,4.2896,3666.4,3666.3,0.6419]
[1754324254780,1.0818,3666.4,3666.3,0.6419]
[1754324255282,0.6284,3666.4,3666.3,1.7292]
[1754324255476,0.54546,3666.3,3665.9,1.00981]
[1754324255676,0.54555,3665.7,3665.4,0.6419]
[1754324255879,1.0818,3666.1,3665.4,0.6419]
[1754324255880,0.6284,3665.6,3665.5,1.7292]
[1754324256183,1.0818,3666.0,3665.4,0.54558]
[1754324256382,0.4534,3665.8,3665.7,0.6419]
[1754324256572,0.4534,3666.3,3666.0,0.623]
[1754324256776,19.8904,3666.3,3666.2,0.6419]
[1754324256976,20.5188,3666.3,3666.2,0.6419]
[1754324257178,20.5188,3666.3,3666.2,1.7292]
[1754324257382,19.432,3666.4,3666.3,1.0873]
[1754324257776,1.0818,3666.3,3666.2,0.54547]
[1754324258082,19.432,3666.5,3666.4,2.27463]
[1754324258384,19.432,3666.5,3666.4,1.7292]
[1754324258977,20.0624,3666.6,3666.5,0.6419]
[1754324259174,21.06121,3666.6,3666.5,1.7292]
[1754324259380,21.06121,3666.6,3666.3,0.6419]
[1754324259381,1.62723,3666.5,3666.3,0.6419]
[1754324259576,0.4534,3666.4,3665.7,0.6419]
[1754324259776,1.0818,3666.4,3666.3,0.6419]
[1754324259984,20.5118,3666.4,3666.3,1.1062]
[1754324260581,1.0818,3666.4,3666.3,1.1062]
[1754324260884,19.8834,3666.4,3666.3,1.7324]
[1754324261079,20.4956,3666.4,3666.3,0.6419]
[1754324261588,1.65327,3666.3,3666.0,0.5455]
[1754324261881,0.54547,3666.2,3666.0,0.6321]
[1754324262082,1.1078,3665.8,3665.7,0.6321]
[1754324262281,1.1078,3665.8,3665.2,3.2078]
[1754324262282,1.04119,3665.5,3665.3,1.1777]
[1754324262486,0.4956,3665.4,3664.7,3.2078]
[1754324262679,0.4956,3665.4,3665.2,0.54561]
[1754324262981,19.96759,3665.5,3665.3,1.7226]
[1754324263178,0.54561,3665.3,3664.9,0.54565]
[1754324263378,1.1078,3665.2,3665.1,0.6321]
[1754324263686,0.6122,3665.2,3665.1,1.1168]
[1754324263880,20.5298,3665.5,3665.2,0.6058]
[1754324264076,21.07539,3665.5,3665.4,0.6321]
[1754324264281,3.2078,3665.8,3665.4,0.6321]
[1754324264488,19.422,3665.7,3665.6,1.0905]
[1754324265190,0.54558,3665.5,3665.2,1.7226]
[1754324265483,1.1078,3665.3,3665.2,0.6321]
[1754324265981,1.1078,3665.6,3665.5,1.7226]
[1754324266378,1.1078,3665.6,3665.5,0.6321]
[1754324266577,0.54558,3665.5,3665.2,0.54562]
[1754324266783,21.1799,3665.6,3665.1,0.54563]
[1754324266784,1.16271,3665.4,3665.1,0.54563]
[1754324267088,1.16271,3665.4,3664.7,4.2983]
[1754324267089,0.6122,3665.1,3664.7,3.2078]
[1754324267284,1.1078,3664.5,3664.4,0.6321]
[1754324267482,21.12754,3664.5,3664.3,3.2078]
[1754324267680,0.54577,3664.2,3663.9,0.98254616]
[1754324267885,0.6122,3664.0,3663.9,1.52835616]
[1754324268086,20.0168,3664.0,3663.9,2.07304616]
[1754324268581,19.471,3664.0,3663.9,2.70514616]
[1754324268785,20.5788,3664.0,3663.9,1.61464616]
[1754324269491,2.27064,3664.5,3664.2,1.17786]
[1754324269688,1.1078,3664.3,3664.2,0.6321]
[1754324269888,1.1078,3664.0,3663.9,1.52835616]
[1754324270088,1.1078,3664.0,3663.2,0.54591]
[1754324270089,0.54585,3663.7,3663.2,0.54591]
[1754324270290,0.54585,3663.7,3663.4,1.17799]
[1754324270291,1.1078,3663.6,3663.4,1.17799]
[1754324270589,19.463,3663.5,3663.2,0.6321]
[1754324270790,1.1078,3663.3,3663.2,0.6321]
[1754324271089,20.5708,3663.5,3663.4,1.17799]
[1754324271282,20.5708,3663.5,3663.4,0.6321]
[1754324271484,21.11668,3663.5,3663.4,0.6321]
[1754324271683,20.5708,3663.5,3663.4,0.6321]
[1754324272089,20.5708,3663.5,3663.4,1.1168]
[1754324272285,1.1078,3663.4,3663.3,0.54589]
[1754324272490,1.1078,3663.4,3663.3,1.17799]
[1754324272886,1.65369,3663.4,3663.3,1.1168]
[1754324273092,1.1078,3663.4,3662.9,0.4847]
[1754324273292,0.6122,3663.3,3662.9,0.4847]
[1754324273594,1.1078,3663.1,3663.0,0.6321]
[1754324273790,19.448,3663.1,3663.0,1.7226]
[1754324274084,19.452,3663.1,3662.9,1.7226]
[1754324274286,20.5598,3663.1,3663.0,0.6321]
[1754324274888,0.6122,3663.5,3662.7,3.2078]
[1754324275191,20.0612,3663.4,3663.3,0.6321]
[1754324275392,20.0612,3663.4,3663.3,1.1168]
[1754324275792,0.54591,3663.3,3662.9,0.4847]
[1754324275987,0.54591,3663.3,3663.1,0.6321]
[1754324275988,0.6122,3663.2,3663.1,0.6321]
[1754324276191,0.54591,3663.3,3662.9,0.54595]
[1754324276395,1.1078,3663.1,3663.0,0.6321]
[1754324276592,1.1078,3662.9,3662.4,0.6321]
[1754324276788,1.7249,3662.7,3662.5,0.6321]
[1754324276991,1.1078,3662.6,3662.5,0.6321]
[1754324277897,19.437,3662.8,3662.1,3.8399]
[1754324277898,1.7249,3662.4,3662.1,3.8399]
[1754324278195,1.1078,3662.2,3662.1,0.6321]
[1754324278389,19.429,3662.3,3662.2,1.15187]
[1754324278590,19.429,3662.3,3662.2,2.26867]
[1754324278789,19.9326,3662.5,3662.4,1.1168]
[1754324278991,20.5478,3662.5,3662.4,1.1168]
[1754324279889,20.5478,3662.5,3662.4,0.6321]
[1754324280098,1.1078,3662.3,3662.2,0.6321]
[1754324280398,0.6122,3662.6,3662.5,2.26863]
[1754324280591,19.434,3662.6,3662.5,1.15183]
[1754324280892,19.434,3662.6,3661.3,3.2078]
[1754324280893,0.6122,3661.7,3661.3,3.2078]
[1754324281105,1.1078,3661.5,3661.0,1.1168]
[1754324281396,19.44,3661.7,3661.6,0.4847]
[1754324281692,19.44,3661.7,3661.5,0.6321]
[1754324281693,0.6122,3662.0,3661.4,0.54618]
[1754324281892,0.54613,3661.9,3661.8,0.4847]
[1754324282096,0.54613,3661.9,3661.8,1.1168]
[1754324282491,19.98608,3662.2,3662.0,0.4847]
[1754324282796,20.59828,3662.2,3662.1,1.1168]
[1754324282992,20.59828,3662.2,3662.1,0.6321]
[1754324282993,1.65388,3662.2,3662.1,0.6321]
[1754324283398,0.6122,3661.8,3661.7,1.1168]
[1754324283597,0.6171,3662.4,3661.7,1.1168]
[1754324283598,19.44,3662.5,3662.1,0.6321]
[1754324283789,19.44,3662.5,3662.0,0.54609]
[1754324284098,0.54599,3662.8,3662.5,0.54601]
[1754324284300,21.2737735,3663.2,3663.1,1.1168]
[1754324284497,0.6122,3662.7,3662.4,0.54603]
[1754324284803,0.6122,3662.6,3662.5,0.4847]
[1754324285199,0.6122,3662.5,3662.4,0.6321]
[1754324285399,1.1078,3662.5,3662.4,0.6321]
[1754324285901,1.65384,3662.4,3662.2,0.6321]
[1754324286201,1.1078,3662.3,3662.2,0.6321]
[1754324286792,1.1078,3662.1,3662.0,0.6321]
[1754324287200,0.4956,3662.0,3661.9,0.6321]
[1754324287395,3.8249,3662.5,3662.1,0.6321]
[1754324287596,0.4956,3662.2,3662.1,0.6321]
[1754324287796,0.6122,3662.2,3662.1,0.4847]
[1754324287999,0.54617,3661.6,3661.3,0.54619]
[1754324288206,0.54619,3661.4,3661.1,3.8136]
[1754324288498,1.1078,3661.5,3661.4,1.1168]
[1754324288801,0.54613,3661.8,3661.7,0.6321]
[1754324289001,1.65393,3661.8,3661.7,0.6321]
[1754324289901,3.2078,3662.0,3661.8,0.54613]
[1754324290093,0.6087,3662.0,3661.9,0.4847]
[1754324290701,1.0812,3662.0,3661.9,0.619]
[1754324291405,0.4725,3661.8,3661.7,0.619]
[1754324291606,0.6559,3661.7,3661.4,0.54618]
[1754324291904,1.0812,3661.4,3661.3,0.619]
[1754324292697,1.15484,3661.8,3661.5,0.619]
[1754324292902,1.15481,3662.0,3661.8,0.54613]
[1754324293098,1.62733,3661.9,3661.8,0.619]
[1754324293304,2.30813154,3661.9,3661.8,0.619]
[1754324293507,0.68080154,3662.1,3661.9,0.54612]
[1754324293806,0.68080154,3662.1,3661.8,1.0969]
[1754324293807,1.15477,3662.3,3662.2,0.4802]
[1754324294109,1.15477,3662.3,3661.5,3.2078]
[1754324294110,1.0186,3662.1,3662.0,0.619]
[1754324294303,1.69935673,3662.1,3662.0,0.619]
[1754324294807,2.30805673,3662.1,3662.0,0.619]
[1754324295003,2.30805673,3662.1,3661.6,0.54616]
[1754324295004,1.62734,3661.8,3661.6,0.54616]
[1754324295205,1.7371,3661.7,3661.6,0.54616]
[1754324295405,1.76318719,3661.7,3661.6,0.54616]
[1754324295605,1.76318719,3661.7,3661.6,1.16516]
[1754324295807,1.76318719,3661.7,3661.6,0.619]
[1754324296011,1.76318719,3661.7,3661.6,1.0992]
[1754324297212,1.76318719,3661.7,3661.6,0.619]
[1754324297512,1.76318719,3661.7,3661.6,1.0992]
[1754324297717,0.68198719,3661.7,3661.6,1.7159]
[1754324298119,0.6087,3661.6,3661.3,0.619]
[1754324298313,0.6087,3661.4,3661.3,1.0264]
[1754324298611,1.29068719,3661.4,3661.3,1.6431]
[1754324298819,1.29068719,3661.4,3661.3,1.0264]
[1754324299114,1.29068719,3661.4,3661.3,1.6454]
[1754324299706,1.29068719,3661.4,3661.3,2.2621]
[1754324300217,1.76318719,3661.4,3661.3,1.0992]
[1754324300414,0.68198719,3661.4,3661.3,1.0992]
[1754324300712,0.68198719,3661.4,3661.3,1.7159]
[1754324301424,0.54615,3661.7,3661.4,0.54619]
[1754324301612,1.29314784,3661.6,3661.5,0.54617]
[1754324301811,1.29314784,3661.6,3661.5,2.26207]
[1754324302310,0.68444784,3661.6,3661.5,5.46987]
[1754324302510,1.51179556,3662.4,3662.2,0.54606]
[1754324302715,1.80571302,3662.4,3662.1,0.6167]
[1754324302913,1.31246746,3662.3,3662.2,1.0992]
[1754324303115,0.96574556,3662.5,3662.3,1.0992]
[1754324303325,0.96574556,3662.6,3662.5,1.7159]
[1754324303719,0.96574556,3662.7,3662.6,2.26191]
[1754324303920,1.57444556,3662.7,3662.6,2.26191]
[1754324304121,1.0812,3662.7,3662.6,2.26191]
[1754324304317,1.0812,3662.7,3662.6,0.619]
[1754324304520,1.0812,3662.7,3662.5,0.54602]
[1754324304521,1.7371,3662.7,3662.5,0.54602]
[1754324304716,1.0812,3662.6,3662.5,1.16502]
[1754324304918,0.4725,3663.1,3662.9,0.54596]
[1754324305122,4.17354556,3663.4,3663.2,0.6167]
[1754324305322,4.289,3663.4,3663.2,0.54591]
[1754324305625,3.2078,3663.8,3663.7,0.54585]
[1754324305824,4.83483,3663.8,3663.7,0.619]
[1754324306029,4.289,3663.8,3663.7,0.619]
[1754324306424,1.95993267,3664.0,3663.7,1.7159]
[1754324306626,1.95993267,3664.2,3664.1,1.7159]
[1754324306824,2.56863267,3664.2,3664.1,1.0992]
[1754324307025,2.12432377,3664.2,3663.8,1.16482]
[1754324307224,0.6087,3663.9,3663.8,1.64502]
[1754324307422,0.6087,3663.9,3663.8,1.0992]
[1754324307725,1.0812,3663.1,3663.0,0.619]
[1754324307926,1.0812,3663.0,3662.4,0.619]
[1754324308127,1.0812,3663.0,3662.4,1.7159]
[1754324308432,19.395,3663.4,3662.9,0.619]
[1754324308433,0.54593,3663.2,3662.9,0.619]
[1754324308631,1.01845,3663.1,3662.9,0.619]
[1754324308831,0.4725,3663.0,3662.9,0.619]
[1754324309031,1.0812,3663.0,3662.9,0.619]
[1754324310430,3.2078,3663.6,3663.4,0.54589]
[1754324310629,20.0017,3663.9,3663.8,0.54583]
[1754324310829,3.2078,3664.1,3663.9,0.619]
[1754324311029,1.627,3664.0,3663.9,0.619]
[1754324311231,1.7371,3664.0,3663.7,0.619]
[1754324311531,1.0812,3663.8,3663.7,1.16483]
[1754324311729,0.4725,3664.2,3664.1,0.54579]
[1754324311930,19.392,3664.2,3664.1,2.26169]
[1754324312128,20.0007,3664.2,3664.1,2.26169]
[1754324312724,44.58596844,3664.6,3664.5,1.16473]
[1754324312922,63.97796844,3664.6,3664.5,1.16473]
[1754324313224,62.5265,3664.6,3664.5,1.64493]
[1754324313425,0.54573,3664.5,3664.3,0.54575]
[1754324313726,61.9178,3664.6,3663.9,0.4802]
[1754324313928,1.0812,3664.4,3663.9,0.4802]
[1754324314128,1.7371,3664.3,3664.2,0.54576]
[1754324314327,1.0812,3664.3,3664.2,1.16476]
[1754324316030,1.7371,3664.3,3664.2,1.16476]
[1754324316231,0.6087,3664.2,3664.1,0.54578]
[1754324316427,0.6087,3664.2,3664.1,1.64498]
[1754324316632,0.6087,3664.2,3664.1,2.26168]
[1754324317034,1.0812,3664.2,3664.1,1.64498]
[1754324318034,1.36448,3664.1,3663.1,4.57263]
[1754324318241,3.2078,3663.8,3663.4,0.54588]
[1754324318433,1.1284,3663.6,3663.4,0.54588]
[1754324318633,21.1261,3663.5,3663.4,0.54588]
[1754324318833,1.62709,3663.4,3663.3,0.5459]
[1754324319139,1.0812,3663.4,3663.3,0.619]
[1754324320335,1.7008,3663.4,3663.3,0.619]
[1754324320542,1.0812,3663.4,3663.3,0.619]
[1754324320743,19.389,3663.5,3663.4,0.54589]
[1754324320935,1.0841,3663.4,3663.3,0.5968]
[1754324321136,1.0841,3663.3,3663.2,0.54591]
[1754324321436,1.0841,3663.2,3663.1,0.5968]
[1754324321638,2.24962,3663.2,3663.1,0.5968]
[1754324322141,5.45742,3663.2,3663.1,0.5968]
[1754324322536,3.6609,3663.2,3663.1,1.0633]
[1754324322734,4.2919,3663.2,3663.1,1.0633]
[1754324322941,4.2919,3663.2,3663.1,1.6621]
[1754324323443,3.2078,3663.2,3663.1,1.6621]
[1754324323639,1.0841,3663.6,3663.1,1.6621]
[1754324323640,1.62997,3663.6,3663.1,1.6621]
[1754324323943,20.018,3663.5,3663.3,1.6621]
[1754324324244,21.01699,3663.5,3663.4,1.0633]
[1754324325546,4.38465,3663.7,3663.6,1.0633]
[1754324325738,1.0841,3663.5,3663.4,0.54589]
[1754324325934,1.62999,3663.5,3663.3,0.5459]
[1754324326244,1.0841,3663.3,3663.2,0.54591]
[1754324326745,1.0841,3663.3,3663.2,1.60921]
[1754324328344,20.4701,3663.3,3663.2,1.60921]
[1754324328535,20.4701,3663.3,3663.2,2.20801]
[1754324329041,20.4701,3663.3,3663.2,1.6621]
[1754324329338,21.0897,3663.3,3663.2,0.5968]
[1754324329542,1.0841,3663.2,3663.0,1.14274]
[1754324329737,0.4531,3663.2,3663.1,1.0653]
[1754324329940,19.386,3663.3,3663.2,0.54592]
[1754324330138,20.017,3663.3,3663.2,2.20802]
[1754324330545,20.017,3663.3,3663.2,1.6621]
[1754324331051,20.4701,3663.3,3663.2,0.5968]
[1754324331344,21.0897,3663.3,3663.2,0.5968]
[1754324331540,0.54597,3662.9,3662.7,0.54599]
[1754324331740,20.4691,3662.8,3662.7,0.54599]
[1754324331942,1.0841,3662.7,3662.6,0.546]
[1754324332138,0.6196,3662.5,3662.0,1.92079082]
[1754324332346,0.631,3662.3,3662.2,2.20817]
[1754324332543,19.385,3662.4,3662.2,0.54607]
[1754324332842,19.385,3662.4,3662.3,1.6621]
[1754324333033,3.6609,3662.7,3662.3,1.6621]
[1754324333238,1.63006,3663.0,3662.8,0.54598]
[1754324333446,1.0841,3663.0,3662.9,1.6621]
[1754324333639,20.016,3663.0,3662.9,1.6621]
[1754324334236,20.016,3663.0,3662.7,0.54599]
[1754324334441,1.0841,3662.9,3662.7,1.14278]
[1754324334747,19.385,3663.0,3662.9,0.5968]
[1754324335241,20.4691,3663.0,3662.9,0.5968]
[1754324335444,20.4691,3663.0,3662.9,1.0633]
[1754324335744,1.0841,3663.0,3662.9,1.0633]
[1754324335946,20.4681,3663.0,3662.9,0.5968]
[1754324336146,21.0877,3663.0,3662.9,0.5968]
[1754324336342,20.4681,3663.0,3662.9,0.5968]
[1754324336541,20.4681,3663.0,3662.9,1.6621]
[1754324337146,1.0841,3662.9,3662.8,1.14277]
[1754324337346,1.0841,3662.8,3662.3,0.5988]
[1754324337539,0.54598,3662.9,3662.5,0.5968]
[1754324337742,1.0841,3662.8,3662.7,1.14279]
[1754324337948,3.2078,3663.3,3663.2,0.54592]
[1754324338148,23.2228,3663.3,3663.2,2.20802]
[1754324339047,22.5918,3663.3,3663.2,2.20802]
[1754324339550,19.384,3663.3,3663.2,2.20802]
[1754324340445,0.631,3663.7,3663.6,2.20796]
[1754324340650,1.0841,3663.9,3663.7,1.61113]
[1754324340839,1.0841,3663.9,3663.3,3.2078]
[1754324340840,0.54583,3663.8,3663.6,0.54585]
[1754324341044,0.4531,3663.4,3663.3,1.1427]
[1754324341244,1.0841,3663.4,3663.3,1.6092]
[1754324341440,1.31645512,3663.9,3663.6,0.54585]
[1754324341441,0.631,3663.7,3663.6,0.54585]
[1754324341640,3.2078,3664.1,3664.0,0.5458]
[1754324341845,20.07879193,3664.1,3663.9,1.61112]
[1754324342051,19.382,3664.1,3664.0,1.6621]
[1754324342245,21.16289134,3664.1,3664.0,1.0633]
[1754324342452,1.78089134,3664.1,3664.0,1.0633]
[1754324342653,20.4651,3664.1,3664.0,1.0633]
[1754324342846,20.012,3664.1,3664.0,1.6621]
[1754324343345,19.381,3664.1,3664.0,1.6621]
[1754324343546,20.4651,3664.1,3664.0,1.6621]
[1754324343747,1.0841,3664.1,3664.0,1.6621]
[1754324343943,0.6196,3663.9,3663.3,0.5968]
[1754324344245,19.8341,3663.8,3663.7,0.5968]
[1754324344447,19.381,3663.8,3663.7,1.6621]
[1754324345245,19.38,3664.0,3663.9,0.54582]
[1754324345445,20.70795867,3664.0,3663.9,2.20792]
[1754324345756,21.16105867,3664.0,3663.9,0.5968]
[1754324346252,21.16105867,3664.0,3663.5,0.4665]
[1754324346253,22.32646867,3664.0,3663.7,0.54584]
[1754324346457,1.0727,3663.8,3663.7,0.5968]
[1754324346659,1.7037,3663.8,3663.7,0.5968]
[1754324347153,1.0841,3663.6,3663.5,0.5968]
[1754324347551,1.0841,3663.3,3663.2,1.14272]
[1754324347752,0.54592,3663.2,3663.1,0.5968]
[1754324347956,1.16555,3663.1,3662.9,0.5968]
[1754324348158,0.6196,3663.0,3662.9,0.5968]
[1754324348353,1.7037,3663.0,3662.9,0.5968]
[1754324348551,1.0841,3663.0,3662.9,0.5968]
[1754324348751,1.0841,3663.0,3662.9,1.0633]
[1754324348954,20.009,3663.2,3663.0,0.54595]
[1754324349257,20.009,3663.2,3663.1,1.6621]
[1754324349459,20.4621,3663.2,3663.1,0.5968]
[1754324349655,0.54594,3663.1,3662.7,0.54599]
[1754324349956,1.0841,3662.7,3662.2,0.5968]
[1754324350157,1.0841,3662.5,3662.4,0.54603]
[1754324350359,1.0841,3662.5,3662.4,1.16493]
[1754324350547,1.0841,3662.5,3662.4,1.60483]
[1754324351360,19.377,3662.6,3662.4,1.74143]
[1754324351554,19.377,3662.6,3662.5,1.0588]
[1754324351555,20.4091,3662.6,3662.5,1.0588]
[1754324351755,20.4091,3662.6,3662.5,0.6189]
[1754324351955,0.4529,3662.5,3662.2,1.6353]
[1754324352155,1.0321,3662.3,3662.2,1.60487]
[1754324352451,0.5792,3662.8,3662.7,0.6189]
[1754324352657,20.4101,3662.8,3662.7,1.6353]
[1754324353257,20.4101,3662.8,3662.7,1.0588]
[1754324353861,20.4101,3662.8,3662.6,0.546]
[1754324353862,1.0321,3662.7,3662.6,0.546]
[1754324354060,1.0321,3662.7,3662.6,1.1649]
[1754324354260,1.0321,3662.7,3662.2,2.86914978]
[1754324354456,1.6532,3662.5,3662.4,0.54603]
[1754324354663,1.6532,3662.4,3662.3,0.6189]
[1754324354954,1.12526,3662.3,3662.1,0.6189]
[1754324355160,1.6532,3662.2,3662.1,0.6189]
[1754324355958,1.0321,3662.0,3661.9,0.6189]
[1754324356261,20.54418,3662.1,3662.0,0.6189]
[1754324356758,21.57628,3662.1,3662.0,0.6189]
[1754324358057,21.57628,3662.1,3662.0,3.04814978]
[1754324358362,21.57628,3662.1,3662.0,2.42924978]
[1754324359058,21.0302,3662.1,3662.0,2.42924978]
[1754324359259,21.0302,3662.1,3662.0,3.59424978]
[1754324359564,19.9562,3662.1,3662.0,2.1763]
[1754324359857,19.9562,3662.1,3662.0,4.61813899]
[1754324360052,20.4091,3662.1,3662.0,4.61813899]
[1754324360252,3.2078,3662.2,3662.1,0.6189]
[1754324360462,23.166,3662.2,3662.1,1.6302]
[1754324361466,22.5868,3662.2,3662.1,1.6302]
[1754324361665,22.5868,3662.2,3662.1,4.07203899]
[1754324362462,22.5868,3662.2,3662.1,1.6302]
[1754324363256,22.5868,3662.2,3662.1,2.7531]
[1754324363665,19.379,3662.2,3662.1,2.7531]
[1754324363964,1.279,3662.4,3662.3,2.7531]
[1754324364264,21.5323,3662.4,3662.3,1.0408]
[1754324364855,1.7319,3662.1,3662.0,3.2992]
[1754324365061,0.6998,3662.1,3662.0,3.2992]